fUST/lending_fUST_20250627
["ID","MTS","AMOUNT","RATE_DAILY","PERIOD"]
[368026210,1750998640842,-460.0,0.00019452,2]
[368026212,1750998640852,-460.0,0.00019452,2]
[368026214,1750998640863,-1995.74,0.00019452,2]
[368026216,1750998640874,-460.0,0.00019452,2]
[368026218,1750998640884,-732.39,0.00019452,2]
[368026220,1750998640895,-460.0,0.00019452,2]
[368026222,1750998640905,-460.0,0.00019452,2]
[368026224,1750998640915,-800.65,0.00019452,2]
[368026226,1750998640926,-460.0,0.00019452,2]
[368026228,1750998640937,-460.0,0.00019452,2]
[368026230,1750998640947,-632.16,0.00019452,2]
[368026232,1750998640957,-460.0,0.00019452,2]
[368026235,1750998640968,-503.89,0.00019452,2]
[368026237,1750998640978,-460.0,0.00019452,2]
[368026239,1750998640989,-1851.97,0.00019452,2]
[368026241,1750998640999,-460.0,0.00019452,2]
[368026243,1750998641010,-460.0,0.00019452,2]
[368026245,1750998641020,-460.0,0.00019452,2]
[368026247,1750998641031,-2270.26,0.00019452,2]
[368026249,1750998641042,-460.0,0.00019452,2]
[368026251,1750998641053,-460.0,0.00019452,2]
[368026254,1750998641064,-547.77,0.00019452,2]
[368026256,1750998641075,-1302.05,0.00019452,2]
[368026258,1750998641085,-460.0,0.00019452,2]
[368026260,1750998641096,-668.03,0.00019452,2]
[368026262,1750998641106,-476.1,0.00019452,2]
[368026264,1750998641116,-460.0,0.00019452,2]
[368026266,1750998641127,-520.94,0.00019452,2]
[368026268,1750998641138,-506.42,0.00019452,2]
[368026270,1750998641148,-460.0,0.00019452,2]
[368026272,1750998641158,-460.0,0.00019452,2]
[368026274,1750998641167,-1451.96,0.00019452,2]
[368026276,1750998641176,-460.0,0.00019452,2]
[368026297,1750998641367,-3544.22,0.00019452,2]
[368026300,1750998641382,-3191.64,0.00019452,2]
[368026301,1750998641391,-602.3,0.00019452,2]
[368026303,1750998641400,-799.69,0.00019452,2]
[368026305,1750998641410,-460.0,0.00019452,2]
[368026307,1750998641419,-2058.5,0.00019452,2]
[368026309,1750998641430,-460.0,0.00019452,2]
[368026311,1750998641440,-598.11,0.00019452,2]
[368026313,1750998641450,-980.63,0.00019452,2]
[368026315,1750998641459,-460.0,0.00019452,2]
[368026317,1750998641468,-720.16,0.00019452,2]
[368026319,1750998641477,-751.76,0.00019452,2]
[368026321,1750998641487,-1701.47,0.00019452,2]
[368026323,1750998641496,-460.0,0.00019452,2]
[368026325,1750998641505,-460.0,0.00019452,2]
[368026327,1750998641515,-460.0,0.00019452,2]
[368026329,1750998641525,-934.13,0.00019452,2]
[368026331,1750998641534,-1440.16,0.00019452,2]
[368026333,1750998641543,-182.0,0.00019471,2]
[368026335,1750998641553,-182.0,0.00019558,2]
[368026337,1750998641563,-182.0,0.00019572,2]
[368026339,1750998641572,-182.0,0.00019601,2]
[368026341,1750998641581,-182.0,0.00019611,2]
[368026343,1750998641591,-182.0,0.00019655,2]
[368026345,1750998641601,-252.0,0.00019703,2]
[368026347,1750998641615,-500.0,0.00019726,2]
[368026349,1750998641625,-460.0,0.00019726,2]
[368026351,1750998641635,-460.0,0.00019726,2]
[368026353,1750998641645,-460.0,0.00019726,2]
[368026355,1750998641655,-460.0,0.00019726,2]
[368026357,1750998641665,-538.78,0.00019726,2]
[368026359,1750998641676,-460.0,0.00019726,2]
[368026361,1750998641685,-460.0,0.00019726,2]
[368026363,1750998641694,-460.0,0.00019726,2]
[368026365,1750998641703,-460.0,0.00019726,2]
[368026367,1750998641713,-460.0,0.00019726,2]
[368026369,1750998641722,-460.0,0.00019726,2]
[368026371,1750998641731,-460.0,0.00019726,2]
[368026373,1750998641741,-973.65,0.00019726,2]
[368026375,1750998641750,-808.06,0.00019726,2]
[368026377,1750998641761,-460.0,0.00019726,2]
[368026380,1750998641771,-460.0,0.00019726,2]
[368026382,1750998641782,-460.0,0.00019726,2]
[368026384,1750998641791,-401.7493851,0.00019726,2]
[368026386,1750998641800,-460.0,0.00019726,2]
[368026388,1750998641809,-460.0,0.00019726,2]
[368026390,1750998641818,-460.0,0.00019726,2]
[368026391,1750998641827,-460.0,0.00019726,2]
[368026393,1750998641836,-238.73031473,0.00019726,2]
[368026396,1750998641846,-483.75,0.00019726,2]
[368026397,1750998641855,-460.0,0.00019726,2]
[368026400,1750998641865,-344.08569836,0.00019726,2]
[368026402,1750998641874,-460.0,0.00019726,2]
[368026404,1750998641884,-460.0,0.00019726,2]
[368026405,1750998641893,-460.0,0.00019726,2]
[368026407,1750998641902,-485.22,0.00019726,2]
[368026409,1750998641912,-710.05,0.00019726,2]
[368026411,1750998641921,-460.0,0.00019726,2]
[368026413,1750998641930,-489.33,0.00019726,2]
[368026415,1750998641939,-460.0,0.00019726,2]
[368026417,1750998641948,-460.0,0.00019726,2]
[368026419,1750998641958,-460.0,0.00019726,2]
[368026421,1750998641969,-460.0,0.00019726,2]
[368026423,1750998641979,-533.06,0.00019726,2]
[368026426,1750998641989,-460.0,0.00019726,2]
[368026427,1750998641999,-460.0,0.00019726,2]
[368026429,1750998642008,-460.0,0.00019726,2]
[368026432,1750998642019,-460.0,0.00019726,2]
[368026433,1750998642030,-460.0,0.00019726,2]
[368026435,1750998642040,-460.0,0.00019726,2]
[368026437,1750998642049,-1511.68,0.00019726,2]
[368026439,1750998642059,-460.0,0.00019726,2]
[368026441,1750998642068,-460.0,0.00019726,2]
[368026443,1750998642077,-1608.24,0.00019726,2]
[368026445,1750998642086,-1424.67,0.00019726,2]
[368026447,1750998642096,-460.0,0.00019726,2]
[368026449,1750998642105,-504.16,0.00019726,2]
[368026451,1750998642115,-460.0,0.00019726,2]
[368026453,1750998642124,-460.0,0.00019726,2]
[368026455,1750998642134,-2130.67,0.00019726,2]
[368026457,1750998642144,-460.0,0.00019726,2]
[368026459,1750998642154,-460.0,0.00019726,2]
[368026461,1750998642164,-760.85,0.00019726,2]
[368026463,1750998642173,-1072.28,0.00019726,2]
[368026465,1750998642182,-460.0,0.00019726,2]
[368026467,1750998642191,-460.0,0.00019726,2]
[368026469,1750998642200,-1995.74,0.00019726,2]
[368026471,1750998642210,-732.39,0.00019726,2]
[368026473,1750998642219,-460.0,0.00019726,2]
[368026475,1750998642229,-460.0,0.00019726,2]
[368026477,1750998642239,-800.65,0.00019726,2]
[368026479,1750998642250,-460.0,0.00019726,2]
[368026481,1750998642260,-460.0,0.00019726,2]
[368026483,1750998642269,-632.16,0.00019726,2]
[368026485,1750998642278,-460.0,0.00019726,2]
[368026487,1750998642288,-503.89,0.00019726,2]
[368026489,1750998642297,-515.92,0.00019726,2]
[368026491,1750998642306,-1851.97,0.00019726,2]
[368026493,1750998642315,-460.0,0.00019726,2]
[368026495,1750998642325,-460.0,0.00019726,2]
[368026497,1750998642334,-460.0,0.00019726,2]
[368026499,1750998642343,-2270.26,0.00019726,2]
[368026501,1750998642352,-460.0,0.00019726,2]
[368026503,1750998642361,-460.0,0.00019726,2]
[368026505,1750998642370,-547.77,0.00019726,2]
[368026507,1750998642379,-1302.05,0.00019726,2]
[368026508,1750998642388,-668.03,0.00019726,2]
[368026510,1750998642397,-476.1,0.00019726,2]
[368026512,1750998642406,-460.0,0.00019726,2]
[368026514,1750998642416,-520.94,0.00019726,2]
[368026517,1750998642425,-460.0,0.00019726,2]
[368026519,1750998642435,-460.0,0.00019726,2]
[368026520,1750998642444,-1451.96,0.00019726,2]
[368026522,1750998642453,-460.0,0.00019726,2]
[368026524,1750998642463,-3544.22,0.00019726,2]
[368026526,1750998642472,-3191.64,0.00019726,2]
[368026528,1750998642481,-602.3,0.00019726,2]
[368026530,1750998642490,-799.69,0.00019726,2]
[368026532,1750998642500,-460.0,0.00019726,2]
[368026534,1750998642509,-2058.5,0.00019726,2]
[368026536,1750998642518,-460.0,0.00019726,2]
[368026538,1750998642528,-598.11,0.00019726,2]
[368026540,1750998642537,-980.63,0.00019726,2]
[368026542,1750998642546,-460.0,0.00019726,2]
[368026544,1750998642555,-720.16,0.00019726,2]
[368026546,1750998642564,-751.76,0.00019726,2]
[368026548,1750998642573,-1701.47,0.00019726,2]
[368026550,1750998642582,-322.19764404,0.00019726,2]
[368026552,1750998642592,-460.0,0.00019726,2]
[368026554,1750998642601,-460.0,0.00019726,2]
[368026556,1750998642611,-934.13,0.00019726,2]
[368026558,1750998642620,-1440.16,0.00019726,2]
[368026560,1750998642630,-500.0,0.00019804,2]
[368026562,1750998642639,-500.75103326,0.00019804,2]
[368026564,1750998642649,-500.0,0.00019804,2]
[368026566,1750998642658,-182.0,0.00019828,2]
[368026568,1750998642668,-25136.47832711,0.00019865,2]
[368026570,1750998642680,-5000.0,0.00019865,2]
[368026573,1750998642690,-207.4,0.00019865,2]
[368026576,1750998642699,-714.66341437,0.00019865,2]
[368026579,1750998642708,-199.98954325,0.00019865,2]
[368026581,1750998642718,-151.0,0.000199,2]
[368026584,1750998642728,-6317.43255916,0.000199,2]
[368026587,1750998642738,-732.77494504,0.0001991,2]
[368026589,1750998642747,-160.46873652,0.00019919,2]
[368026591,1750998642757,-500.0,0.00019919,2]
[368026593,1750998642767,-501.01939852,0.00019938,2]
[368026595,1750998642776,-500.0,0.00019938,2]
[368026597,1750998642787,-500.0,0.00019938,2]
[368026599,1750998642796,-500.36063158,0.00019938,2]
[368026602,1750998642806,-500.81019278,0.00019973,2]
[368026604,1750998642815,-501.15283848,0.00019973,2]
[368026607,1750998642825,-500.0,0.00019973,2]
[368026610,1750998642835,-847.04181546,0.00019975,2]
[368026612,1750998642844,-836.98798914,0.00019975,2]
[368026614,1750998642854,-214.91804724,0.00019975,2]
[368026616,1750998642863,-230.26210603,0.00019975,2]
[368026618,1750998642873,-213.75309343,0.00019975,2]
[368026620,1750998642882,-160.0,0.00019975,2]
[368026622,1750998642891,-160.0,0.00019975,2]
[368026624,1750998642901,-160.0,0.00019975,2]
[368026627,1750998642911,-12562.41216491,0.00019975,2]
[368026629,1750998642921,-253.37301939,0.00019989,2]
[368026631,1750998642931,-458.40699867,0.0002,2]
[368026633,1750998642940,-460.0,0.0002,2]
[368026634,1750998642949,-460.0,0.0002,2]
[368026636,1750998642959,-460.0,0.0002,2]
[368026638,1750998642969,-538.78,0.0002,2]
[368026640,1750998642979,-460.0,0.0002,2]
[368026642,1750998642988,-460.0,0.0002,2]
[368026644,1750998642997,-460.0,0.0002,2]
[368026646,1750998643007,-460.0,0.0002,2]
[368026648,1750998643016,-460.0,0.0002,2]
[368026650,1750998643025,-460.0,0.0002,2]
[368026652,1750998643034,-460.0,0.0002,2]
[368026654,1750998643043,-973.65,0.0002,2]
[368026656,1750998643053,-808.06,0.0002,2]
[368026658,1750998643062,-460.0,0.0002,2]
[368026660,1750998643072,-460.0,0.0002,2]
[368026662,1750998643081,-460.0,0.0002,2]
[368026664,1750998643091,-4291.0,0.0002,2]
[368026666,1750998643101,-460.0,0.0002,2]
[368026668,1750998643110,-460.0,0.0002,2]
[368026670,1750998643120,-460.0,0.0002,2]
[368026671,1750998643129,-460.0,0.0002,2]
[368026672,1750998643139,-483.75,0.0002,2]
[368026673,1750998643148,-460.0,0.0002,2]
[368026674,1750998643158,-460.0,0.0002,2]
[368026675,1750998643168,-460.0,0.0002,2]
[368026676,1750998643177,-460.0,0.0002,2]
[368026678,1750998643187,-485.22,0.0002,2]
[368026680,1750998643196,-710.05,0.0002,2]
[368026682,1750998643206,-603.18,0.0002,2]
[368026684,1750998643216,-489.33,0.0002,2]
[368026686,1750998643225,-460.0,0.0002,2]
[368026688,1750998643235,-460.0,0.0002,2]
[368026690,1750998643244,-460.0,0.0002,2]
[368026692,1750998643258,-460.0,0.0002,2]
[368026694,1750998643269,-533.06,0.0002,2]
[368026696,1750998643278,-300.0,0.0002,2]
[368026699,1750998643287,-460.0,0.0002,2]
[368026700,1750998643297,-460.0,0.0002,2]
[368026702,1750998643306,-519.86919444,0.0002,2]
[368026704,1750998643315,-460.0,0.0002,2]
[368026706,1750998643326,-460.0,0.0002,2]
[368026709,1750998643336,-460.0,0.0002,2]
[368026711,1750998643346,-1511.68,0.0002,2]
[368026713,1750998643356,-460.0,0.0002,2]
[368026715,1750998643365,-460.0,0.0002,2]
[368026717,1750998643375,-1608.24,0.0002,2]
[368026720,1750998643384,-1424.67,0.0002,2]
[368026722,1750998643393,-460.0,0.0002,2]
[368026724,1750998643403,-504.16,0.0002,2]
[368026726,1750998643412,-460.0,0.0002,2]
[368026728,1750998643421,-460.0,0.0002,2]
[368026730,1750998643431,-2130.67,0.0002,2]
[368026732,1750998643440,-460.0,0.0002,2]
[368026734,1750998643449,-460.0,0.0002,2]
[368026736,1750998643459,-760.85,0.0002,2]
[368026738,1750998643468,-1072.28,0.0002,2]
[368026740,1750998643477,-460.0,0.0002,2]
[368026742,1750998643486,-460.0,0.0002,2]
[368026744,1750998643496,-1995.74,0.0002,2]
[368026746,1750998643505,-732.39,0.0002,2]
[368026748,1750998643514,-460.0,0.0002,2]
[368026750,1750998643524,-460.0,0.0002,2]
[368026752,1750998643534,-800.65,0.0002,2]
[368026755,1750998643543,-460.0,0.0002,2]
[368026758,1750998643552,-460.0,0.0002,2]
[368026761,1750998643561,-632.16,0.0002,2]
[368026763,1750998643571,-460.0,0.0002,2]
[368026765,1750998643580,-300.17311486,0.0002,7]
[368026767,1750998643590,-503.89,0.0002,2]
[368026769,1750998643600,-1851.97,0.0002,2]
[368026771,1750998643610,-460.0,0.0002,2]
[368026773,1750998643618,-460.0,0.0002,2]
[368026775,1750998643628,-3089.8856831,0.0002,2]
[368026777,1750998643638,-460.0,0.0002,2]
[368026779,1750998643647,-2270.26,0.0002,2]
[368026781,1750998643658,-460.0,0.0002,2]
[368026783,1750998643667,-460.0,0.0002,2]
[368026785,1750998643677,-547.77,0.0002,2]
[368026787,1750998643687,-1302.05,0.0002,2]
[368026789,1750998643698,-668.03,0.0002,2]
[368026791,1750998643707,-476.1,0.0002,2]
[368026793,1750998643717,-460.0,0.0002,2]
[368026795,1750998643727,-520.94,0.0002,2]
[368026797,1750998643736,-460.0,0.0002,2]
[368026799,1750998643746,-460.0,0.0002,2]
[368026801,1750998643756,-1451.96,0.0002,2]
[368026803,1750998643765,-460.0,0.0002,2]
[368026805,1750998643775,-3544.22,0.0002,2]
[368026807,1750998643784,-3191.64,0.0002,2]
[368026809,1750998643794,-602.3,0.0002,2]
[368026811,1750998643803,-799.69,0.0002,2]
[368026813,1750998643813,-460.0,0.0002,2]
[368026816,1750998643823,-2058.5,0.0002,2]
[368026818,1750998643832,-460.0,0.0002,2]
[368026820,1750998643841,-598.11,0.0002,2]
[368026822,1750998643851,-980.63,0.0002,2]
[368026824,1750998643860,-460.0,0.0002,2]
[368026826,1750998643870,-720.16,0.0002,2]
[368026828,1750998643880,-751.76,0.0002,2]
[368026830,1750998643890,-1701.47,0.0002,2]
[368026833,1750998643900,-460.0,0.0002,2]
[368026836,1750998643909,-460.0,0.0002,2]
[368026837,1750998643918,-934.13,0.0002,2]
[368026839,1750998643927,-160.0,0.00020009,2]
[368026841,1750998643936,-500.0,0.00020017,2]
[368026843,1750998643944,-500.0,0.0002005,2]
[368026845,1750998643953,-6317.43255887,0.00020107,2]
[368026847,1750998643962,-151.0,0.000202,4]
[368026849,1750998643971,-460.0,0.00020273,2]
[368026852,1750998643981,-460.0,0.00020273,2]
[368026854,1750998643990,-346.66027575,0.00020273,2]
[368026856,1750998643999,-538.78,0.00020273,2]
[368026858,1750998644008,-460.0,0.00020273,2]
[368026860,1750998644017,-460.0,0.00020273,2]
[368026861,1750998644026,-460.0,0.00020273,2]
[368026863,1750998644036,-460.0,0.00020273,2]
[368026865,1750998644046,-460.0,0.00020273,2]
[368026868,1750998644055,-460.0,0.00020273,2]
[368026869,1750998644065,-460.0,0.00020273,2]
[368026872,1750998644074,-973.65,0.00020273,2]
[368026874,1750998644083,-808.06,0.00020273,2]
[368026875,1750998644092,-460.0,0.00020273,2]
[368026878,1750998644102,-460.0,0.00020273,2]
[368026880,1750998644111,-460.0,0.00020273,2]
[368026881,1750998644120,-460.0,0.00020273,2]
[368026883,1750998644130,-460.0,0.00020273,2]
[368026885,1750998644139,-460.0,0.00020273,2]
[368026887,1750998644148,-483.75,0.00020273,2]
[368026890,1750998644158,-460.0,0.00020273,2]
[368026892,1750998644167,-460.0,0.00020273,2]
[368026893,1750998644176,-460.0,0.00020273,2]
[368026896,1750998644185,-485.22,0.00020273,2]
[368026898,1750998644194,-710.05,0.00020273,2]
[368026899,1750998644203,-489.33,0.00020273,2]
[368026902,1750998644213,-372.97353784,0.00020273,2]
[368026903,1750998644222,-460.0,0.00020273,2]
[368026905,1750998644231,-460.0,0.00020273,2]
[368026908,1750998644240,-460.0,0.00020273,2]
[368026910,1750998644254,-533.06,0.00020273,2]
[368026912,1750998644263,-460.0,0.00020273,2]
[368026914,1750998644272,-460.0,0.00020273,2]
[368026916,1750998644282,-532.45,0.00020273,2]
[368026918,1750998644292,-460.0,0.00020273,2]
[368026920,1750998644302,-460.0,0.00020273,2]
[368026922,1750998644311,-1511.68,0.00020273,2]
[368026924,1750998644322,-460.0,0.00020273,2]
[368026926,1750998644331,-460.0,0.00020273,2]
[368026928,1750998644342,-1608.24,0.00020273,2]
[368026930,1750998644351,-1424.67,0.00020273,2]
[368026932,1750998644360,-460.0,0.00020273,2]
[368026934,1750998644370,-504.16,0.00020273,2]
[368026936,1750998644379,-460.0,0.00020273,2]
[368026938,1750998644388,-460.0,0.00020273,2]
[368026940,1750998644397,-2130.67,0.00020273,2]
[368026942,1750998644407,-460.0,0.00020273,2]
[368026944,1750998644415,-460.0,0.00020273,2]
[368026946,1750998644425,-760.85,0.00020273,2]
[368026948,1750998644434,-1072.28,0.00020273,2]
[368026963,1750998644545,-566.92,0.00020273,2]
[368026965,1750998644576,-460.0,0.00020273,2]
[368026967,1750998644585,-1995.74,0.00020273,2]
[368026969,1750998644595,-732.39,0.00020273,2]
[368026971,1750998644604,-460.0,0.00020273,2]
[368026973,1750998644614,-460.0,0.00020273,2]
[368026976,1750998644624,-800.65,0.00020273,2]
[368026978,1750998644634,-460.0,0.00020273,2]
[368026980,1750998644643,-460.0,0.00020273,2]
[368026981,1750998644653,-632.16,0.00020273,2]
[368026983,1750998644663,-460.0,0.00020273,2]
[368026986,1750998644673,-503.89,0.00020273,2]
[368026988,1750998644683,-1851.97,0.00020273,2]
[368026990,1750998644692,-460.0,0.00020273,2]
[368026992,1750998644702,-509.14,0.00020273,2]
[368026994,1750998644712,-460.0,0.00020273,2]
[368026996,1750998644721,-2270.26,0.00020273,2]
[368026998,1750998644730,-460.0,0.00020273,2]
[368027000,1750998644741,-460.0,0.00020273,2]
[368027002,1750998644750,-547.77,0.00020273,2]
[368027004,1750998644760,-1302.05,0.00020273,2]
[368027006,1750998644770,-668.03,0.00020273,2]
[368027008,1750998644780,-476.1,0.00020273,2]
[368027010,1750998644789,-460.0,0.00020273,2]
[368027012,1750998644798,-520.94,0.00020273,2]
[368027014,1750998644808,-460.0,0.00020273,2]
[368027016,1750998644818,-460.0,0.00020273,2]
[368027017,1750998644827,-1451.96,0.00020273,2]
[368027019,1750998644836,-460.0,0.00020273,2]
[368027021,1750998644845,-3544.22,0.00020273,2]
[368027023,1750998644854,-3191.64,0.00020273,2]
[368027025,1750998644863,-602.3,0.00020273,2]
[368027028,1750998644873,-799.69,0.00020273,2]
[368027030,1750998644882,-2058.5,0.00020273,2]
[368027032,1750998644892,-460.0,0.00020273,2]
[368027033,1750998644902,-460.0,0.00020273,2]
[368027035,1750998644913,-598.11,0.00020273,2]
[368027037,1750998644922,-980.63,0.00020273,2]
[368027039,1750998644931,-460.0,0.00020273,2]
[368027041,1750998644941,-720.16,0.00020273,2]
[368027043,1750998644951,-751.76,0.00020273,2]
[368027045,1750998644960,-1701.47,0.00020273,2]
[368027047,1750998644970,-460.0,0.00020273,2]
[368027049,1750998644980,-460.0,0.00020273,2]
[368027051,1750998644989,-934.13,0.00020273,2]
[368027053,1750998644999,-6317.43255887,0.00020314,3]
[368027055,1750998645009,-252.0,0.00020336,2]
[368027058,1750998645019,-151.0,0.000204,3]
[368027060,1750998645028,-5000.0,0.00020413,2]
[368027061,1750998645037,-317.0,0.00020471,2]
[368027063,1750998645047,-1000.0,0.00020521,2]
[368027065,1750998645056,-847.04181546,0.00020521,3]
[368027067,1750998645066,-12562.41216491,0.00020521,3]
[368027069,1750998645075,-6317.43255887,0.00020521,3]
[368027071,1750998645084,-6537.875941,0.00020526,2]
[368027074,1750998645094,-460.0,0.00020547,2]
[368027076,1750998645104,-460.0,0.00020547,2]
[368027078,1750998645114,-538.78,0.00020547,2]
[368027080,1750998645123,-460.0,0.00020547,2]
[368027082,1750998645133,-460.0,0.00020547,2]
[368027084,1750998645142,-578.16041718,0.00020547,2]
[368027086,1750998645151,-460.0,0.00020547,2]
[368027088,1750998645161,-460.0,0.00020547,2]
[368027090,1750998645170,-460.0,0.00020547,2]
[368027092,1750998645179,-460.0,0.00020547,2]
[368027094,1750998645188,-973.65,0.00020547,2]
[368027096,1750998645198,-808.06,0.00020547,2]
[368027098,1750998645207,-460.0,0.00020547,2]
[368027100,1750998645217,-460.0,0.00020547,2]
[368027102,1750998645226,-460.0,0.00020547,2]
[368027104,1750998645235,-460.0,0.00020547,2]
[368027106,1750998645245,-460.0,0.00020547,2]
[368027108,1750998645254,-483.75,0.00020547,2]
[368027110,1750998645264,-511.29090805,0.00020547,2]
[368027112,1750998645273,-460.0,0.00020547,2]
[368027114,1750998645282,-460.0,0.00020547,2]
[368027116,1750998645291,-485.22,0.00020547,2]
[368027118,1750998645301,-710.05,0.00020547,2]
[368027120,1750998645310,-489.33,0.00020547,2]
[368027122,1750998645320,-460.0,0.00020547,2]
[368027124,1750998645329,-568.49418213,0.00020547,2]
[368027126,1750998645339,-460.0,0.00020547,2]
[368027128,1750998645348,-533.06,0.00020547,2]
[368027130,1750998645357,-460.0,0.00020547,2]
[368027132,1750998645367,-460.0,0.00020547,2]
[368027134,1750998645376,-460.0,0.00020547,2]
[368027136,1750998645386,-460.0,0.00020547,2]
[368027138,1750998645396,-1511.68,0.00020547,2]
[368027140,1750998645405,-460.0,0.00020547,2]
[368027142,1750998645415,-460.0,0.00020547,2]
[368027144,1750998645424,-1608.24,0.00020547,2]
[368027146,1750998645433,-1424.67,0.00020547,2]
[368027148,1750998645443,-460.0,0.00020547,2]
[368027150,1750998645452,-504.16,0.00020547,2]
[368027152,1750998645462,-460.0,0.00020547,2]
[368027154,1750998645471,-460.0,0.00020547,2]
[368027156,1750998645480,-2130.67,0.00020547,2]
[368027158,1750998645490,-460.0,0.00020547,2]
[368027160,1750998645499,-460.0,0.00020547,2]
[368027163,1750998645509,-760.85,0.00020547,2]
[368027165,1750998645518,-1072.28,0.00020547,2]
[368027167,1750998645527,-540.0,0.00020547,2]
[368027169,1750998645538,-1995.74,0.00020547,2]
[368027171,1750998645547,-732.39,0.00020547,2]
[368027173,1750998645556,-460.0,0.00020547,2]
[368027175,1750998645565,-460.0,0.00020547,2]
[368027178,1750998645575,-800.65,0.00020547,2]
[368027181,1750998645584,-460.0,0.00020547,2]
[368027183,1750998645594,-460.0,0.00020547,2]
[368027185,1750998645603,-632.16,0.00020547,2]
[368027187,1750998645613,-460.0,0.00020547,2]
[368027189,1750998645622,-503.89,0.00020547,2]
[368027191,1750998645631,-1851.97,0.00020547,2]
[368027193,1750998645640,-460.0,0.00020547,2]
[368027195,1750998645649,-460.0,0.00020547,2]
[368027197,1750998645659,-2270.26,0.00020547,2]
[368027198,1750998645668,-460.0,0.00020547,2]
[368027200,1750998645678,-460.0,0.00020547,2]
[368027202,1750998645687,-547.77,0.00020547,2]
[368027205,1750998645697,-1302.05,0.00020547,2]
[368027207,1750998645706,-668.03,0.00020547,2]
[368027209,1750998645715,-476.1,0.00020547,2]
[368027211,1750998645725,-460.0,0.00020547,2]
[368027212,1750998645734,-520.94,0.00020547,2]
[368027215,1750998645744,-460.0,0.00020547,2]
[368027217,1750998645753,-460.0,0.00020547,2]
[368027219,1750998645762,-1451.96,0.00020547,2]
[368027221,1750998645772,-460.0,0.00020547,2]
[368027223,1750998645782,-3544.22,0.00020547,2]
[368027224,1750998645791,-3191.64,0.00020547,2]
[368027227,1750998645801,-602.3,0.00020547,2]
[368027229,1750998645811,-799.69,0.00020547,2]
[368027231,1750998645820,-2058.5,0.00020547,2]
[368027233,1750998645829,-460.0,0.00020547,2]
[368027234,1750998645839,-460.0,0.00020547,2]
[368027236,1750998645849,-598.11,0.00020547,2]
[368027239,1750998645859,-980.63,0.00020547,2]
[368027241,1750998645868,-460.0,0.00020547,2]
[368027243,1750998645877,-720.16,0.00020547,2]
[368027245,1750998645887,-751.76,0.00020547,2]
[368027247,1750998645895,-1701.47,0.00020547,2]
[368027249,1750998645906,-460.0,0.00020547,2]
[368027251,1750998645915,-460.0,0.00020547,2]
[368027253,1750998645925,-934.13,0.00020547,2]
[368027255,1750998645934,-151.0,0.000206,4]